[Event "*** Titled Tuesday 3|2 Blitz"]
[Site "Chess.com"]
[Date "2015.01.27"]
[Round "2"]
[White "Tomsel"]
[Black "Rogue_King"]
[Result "1-0"]
[WhiteElo "2304"]
[BlackElo "2012"]
[TimeControl "180+2"]
[EndTime "11:21:46 PST"]
[Termination "Tomsel won by resignation"]

1. d4 {[%clk 0:02:55.2]} 1... Nf6 {[%clk 0:02:58.9]} 2. Bf4 {[%clk 0:02:44.7]}
2... d6 {[%clk 0:02:59.1]} 3. Nc3 {[%clk 0:02:30.8]} 3... Nbd7 {[%clk
0:02:49.5]} 4. Nf3 {[%clk 0:02:30.7]} 4... c5 {[%clk 0:02:50]} 5. e3 {[%clk
0:02:11.5]} 5... g6 {[%clk 0:02:48.9]} 6. h3 {[%clk 0:02:11.5]} 6... Bg7 {[%clk
0:02:49.2]} 7. a3 {[%clk 0:02:10.9]} 7... O-O {[%clk 0:02:49.6]} 8. Bc4 {[%clk
0:02:12.1]} 8... a6 {[%clk 0:02:49.5]} 9. O-O {[%clk 0:02:12.1]} 9... b5 {[%clk
0:02:50.5]} 10. Be2 {[%clk 0:02:07.4]} 10... Bb7 {[%clk 0:02:51.2]} 11. Bh2
{[%clk 0:02:04.1]} 11... Rc8 {[%clk 0:02:17.3]} 12. Re1 {[%clk 0:01:56.7]} 12...
Ne4 {[%clk 0:02:16.6]} 13. Nxe4 {[%clk 0:01:54.3]} 13... Bxe4 {[%clk 0:02:18.5]}
14. c3 {[%clk 0:01:54.7]} 14... Nf6 {[%clk 0:02:07.2]} 15. a4 {[%clk 0:01:53.6]}
15... c4 {[%clk 0:01:52.5]} 16. axb5 {[%clk 0:01:53.1]} 16... axb5 {[%clk
0:01:54.4]} 17. Ra7 {[%clk 0:01:28]} 17... e6 {[%clk 0:01:07]} 18. Qa1 {[%clk
0:01:21.7]} 18... Nd5 {[%clk 0:00:51.3]} 19. Nd2 {[%clk 0:01:02.9]} 19... Bd3
{[%clk 0:00:30.8]} 20. Bxd3 {[%clk 0:00:43.1]} 20... cxd3 {[%clk 0:00:32.7]} 21.
Qa6 {[%clk 0:00:25.9]} 21... Nb6 {[%clk 0:00:10.1]} 22. Qxb5 {[%clk 0:00:23.5]}
22... e5 {[%clk 0:00:11.4]} 23. Rb7 {[%clk 0:00:20.5]} 23... Nd7 {[%clk
0:00:09.7]} 24. Qxd7 {[%clk 0:00:20.9]} 24... Qg5 {[%clk 0:00:11.1]} 25. Ne4
{[%clk 0:00:14.2]} 25... Qh5 {[%clk 0:00:11.3]} 26. Qg4 {[%clk 0:00:06.9]} 26...
f5 {[%clk 0:00:10.2]} 27. Qxh5 {[%clk 0:00:08]} 27... gxh5 {[%clk 0:00:12.1]}
28. Nxd6 {[%clk 0:00:09.6]} 28... Rc6 {[%clk 0:00:12.3]} 29. Bxe5 {[%clk
0:00:08.3]} 29... Bxe5 {[%clk 0:00:08.9]} 30. dxe5 {[%clk 0:00:10.2]} 30... Rc5
{[%clk 0:00:09.2]} 31. f4 {[%clk 0:00:11.1]} 31... Kh8 {[%clk 0:00:09.2]} 32.
Rd1 {[%clk 0:00:12.3]} 32... h6 {[%clk 0:00:10.3]} 33. Rxd3 {[%clk 0:00:13.3]}
33... Rg8 {[%clk 0:00:11.7]} 34. Nf7+ {[%clk 0:00:14.1]} 34... Kh7 {[%clk
0:00:11.4]} 35. Rd6 {[%clk 0:00:12.9]} 35... Ra5 {[%clk 0:00:06.7]} 36. Ng5+
{[%clk 0:00:11.4]} 1-0

[Event "*** Titled Tuesday 3|2 Blitz"]
[Site "Chess.com"]
[Date "2015.01.27"]
[Round "2"]
[White "tac49"]
[Black "Dlugy"]
[Result "0-1"]
[WhiteElo "2182"]
[BlackElo "2579"]
[TimeControl "180+2"]
[EndTime "11:22:08 PST"]
[Termination "Dlugy won by resignation"]

1. e4 {[%clk 0:02:56.7]} 1... d5 {[%clk 0:02:58.9]} 2. Nc3 {[%clk 0:02:54.6]}
2... d4 {[%clk 0:03:00]} 3. Nce2 {[%clk 0:02:55.4]} 3... g6 {[%clk 0:03:01.9]}
4. d3 {[%clk 0:02:55.8]} 4... Bg7 {[%clk 0:03:03.4]} 5. Ng3 {[%clk 0:02:57.2]}
5... h5 {[%clk 0:03:03.7]} 6. h4 {[%clk 0:02:53.6]} 6... c5 {[%clk 0:03:04.7]}
7. Nf3 {[%clk 0:02:51.5]} 7... Nc6 {[%clk 0:03:05.8]} 8. Bg5 {[%clk 0:02:51.7]}
8... Bg4 {[%clk 0:03:05.7]} 9. Be2 {[%clk 0:02:51.9]} 9... f6 {[%clk 0:03:05.7]}
10. Bd2 {[%clk 0:02:51.8]} 10... e5 {[%clk 0:03:06.7]} 11. Nh2 {[%clk
0:02:52.3]} 11... Be6 {[%clk 0:03:06.7]} 12. f4 {[%clk 0:02:51.8]} 12... exf4
{[%clk 0:03:04.8]} 13. Bxf4 {[%clk 0:02:53.7]} 13... Bh6 {[%clk 0:03:04.7]} 14.
Qd2 {[%clk 0:02:53.1]} 14... Qa5 {[%clk 0:02:53.3]} 15. Qxa5 {[%clk 0:02:40.3]}
15... Nxa5 {[%clk 0:02:53.9]} 16. O-O {[%clk 0:02:33.4]} 16... Nc6 {[%clk
0:02:48.9]} 17. Bxh6 {[%clk 0:02:29.4]} 17... Rxh6 {[%clk 0:02:49.6]} 18. a3
{[%clk 0:02:18.3]} 18... a5 {[%clk 0:02:48.2]} 19. Rae1 {[%clk 0:02:12.8]} 19...
a4 {[%clk 0:02:42]} 20. Nf3 {[%clk 0:02:13.4]} 20... Ra6 {[%clk 0:02:31.9]} 21.
e5 {[%clk 0:01:59.5]} 21... f5 {[%clk 0:02:29.5]} 22. Ng5 {[%clk 0:01:56]} 22...
Nd8 {[%clk 0:02:30.5]} 23. Bf3 {[%clk 0:01:54.6]} 23... Rb6 {[%clk 0:02:31.8]}
24. Rb1 {[%clk 0:01:46]} 24... Ba2 {[%clk 0:02:28.3]} 25. Ra1 {[%clk 0:01:40.4]}
25... Be6 {[%clk 0:02:18.2]} 26. Rab1 {[%clk 0:01:33.2]} 26... Ne7 {[%clk
0:02:19.1]} 27. c4 {[%clk 0:01:23.1]} 27... Nec6 {[%clk 0:02:06.7]} 28. Bxc6+
{[%clk 0:01:21.1]} 28... Rxc6 {[%clk 0:02:06.6]} 29. Ne2 {[%clk 0:01:22]} 29...
Rb6 {[%clk 0:02:05.4]} 30. Nf4 {[%clk 0:01:23.2]} 30... Kd7 {[%clk 0:01:58.3]}
31. Rf2 {[%clk 0:01:17.5]} 31... Rb3 {[%clk 0:01:58.6]} 32. Re1 {[%clk
0:01:16.7]} 32... Rh8 {[%clk 0:01:57.6]} 33. Nxg6 {[%clk 0:01:13.9]} 33... Rg8
{[%clk 0:01:58.9]} 34. Nf4 {[%clk 0:01:14.8]} 34... b5 {[%clk 0:01:56.6]} 35.
Nxh5 {[%clk 0:01:14.9]} 35... Rh8 {[%clk 0:01:51.8]} 36. Nf6+ {[%clk 0:01:15.7]}
36... Ke7 {[%clk 0:01:53.2]} 37. Nd5+ {[%clk 0:01:10.7]} 37... Kd7 {[%clk
0:01:53.6]} 38. Nf6+ {[%clk 0:01:09.3]} 38... Ke7 {[%clk 0:01:54.8]} 39. Nd5+
{[%clk 0:01:08]} 39... Kd7 {[%clk 0:01:56]} 40. Nf6+ {[%clk 0:01:08.3]} 40...
Kc6 {[%clk 0:01:56.7]} 41. cxb5+ {[%clk 0:01:06.3]} 41... Kxb5 {[%clk
0:01:57.3]} 42. Nxe6 {[%clk 0:00:45.8]} 42... Nxe6 {[%clk 0:01:58.3]} 43. Rxf5
{[%clk 0:00:47.2]} 43... Rxh4 {[%clk 0:01:56.5]} 44. Rf3 {[%clk 0:00:46.8]}
44... Rxb2 {[%clk 0:01:56.8]} 45. Ne4 {[%clk 0:00:45.6]} 45... Kc6 {[%clk
0:01:21.2]} 46. Rc1 {[%clk 0:00:32.8]} 46... Kd5 {[%clk 0:01:18.6]} 47. Rf5
{[%clk 0:00:27.9]} 47... Rxe4 {[%clk 0:01:11.8]} 48. dxe4+ {[%clk 0:00:24.5]}
48... Kxe4 {[%clk 0:01:13.7]} 49. Rf6 {[%clk 0:00:21.6]} 49... Kxe5 {[%clk
0:01:15]} 50. Rxe6+ {[%clk 0:00:21.9]} 50... Kxe6 {[%clk 0:01:16.3]} 51. Rxc5
{[%clk 0:00:23.4]} 51... d3 {[%clk 0:01:17.5]} 52. Rc4 {[%clk 0:00:08.6]} 52...
Rb1+ {[%clk 0:01:13.2]} 0-1

[Event "*** Titled Tuesday 3|2 Blitz"]
[Site "Chess.com"]
[Date "2015.01.27"]
[Round "2"]
[White "rhungaski"]
[Black "Gevorg_Harutjunyan"]
[Result "0-1"]
[WhiteElo "2367"]
[BlackElo "2526"]
[TimeControl "180+2"]
[EndTime "11:22:47 PST"]
[Termination "Gevorg_Harutjunyan won by checkmate"]

1. e4 {[%clk 0:03:00]} 1... c6 {[%clk 0:02:57.7]} 2. d4 {[%clk 0:02:58.4]} 2...
d5 {[%clk 0:02:58.9]} 3. e5 {[%clk 0:02:57.5]} 3... Bf5 {[%clk 0:02:59.3]} 4.
Nf3 {[%clk 0:02:58.9]} 4... e6 {[%clk 0:03:00.8]} 5. Be2 {[%clk 0:03:00]} 5...
Nd7 {[%clk 0:03:02.3]} 6. Nbd2 {[%clk 0:02:59.4]} 6... Nh6 {[%clk 0:03:03.2]} 7.
O-O {[%clk 0:02:58.4]} 7... Bg6 {[%clk 0:03:04.2]} 8. b3 {[%clk 0:02:58.8]} 8...
Nf5 {[%clk 0:03:04.9]} 9. Bb2 {[%clk 0:03:00]} 9... a6 {[%clk 0:03:00.4]} 10. c4
{[%clk 0:03:00.7]} 10... h5 {[%clk 0:02:50.1]} 11. a3 {[%clk 0:02:57.5]} 11...
h4 {[%clk 0:02:44.9]} 12. h3 {[%clk 0:02:51.8]} 12... Be7 {[%clk 0:02:41.6]} 13.
Re1 {[%clk 0:02:49.6]} 13... Bh5 {[%clk 0:02:23.2]} 14. c5 {[%clk 0:02:41.9]}
14... Nf8 {[%clk 0:02:19.5]} 15. Nh2 {[%clk 0:02:34.8]} 15... Bxe2 {[%clk
0:02:12.4]} 16. Qxe2 {[%clk 0:02:36.7]} 16... Ng6 {[%clk 0:02:13.4]} 17. Qf3
{[%clk 0:02:36.5]} 17... Bg5 {[%clk 0:02:11.3]} 18. Red1 {[%clk 0:02:23.8]}
18... b5 {[%clk 0:01:48.9]} 19. cxb6 {[%clk 0:02:17]} 19... Qxb6 {[%clk
0:01:49.1]} 20. Ndf1 {[%clk 0:02:06.5]} 20... a5 {[%clk 0:01:47.3]} 21. Rab1
{[%clk 0:02:00.7]} 21... Be7 {[%clk 0:01:44]} 22. Ng4 {[%clk 0:01:48.2]} 22...
Rb8 {[%clk 0:01:36.6]} 23. Rd3 {[%clk 0:01:41.5]} 23... Qb5 {[%clk 0:01:15.4]}
24. a4 {[%clk 0:01:36.6]} 24... Qa6 {[%clk 0:01:15.3]} 25. Rbd1 {[%clk
0:01:33.6]} 25... Rb6 {[%clk 0:01:02.2]} 26. Nfe3 {[%clk 0:01:24.6]} 26... Nxe3
{[%clk 0:00:56.9]} 27. fxe3 {[%clk 0:01:19.1]} 27... Qb7 {[%clk 0:00:57.4]} 28.
Rf1 {[%clk 0:01:19.6]} 28... O-O {[%clk 0:00:58.1]} 29. Qd1 {[%clk 0:01:06.6]}
29... c5 {[%clk 0:00:55.5]} 30. Bc1 {[%clk 0:00:59.5]} 30... c4 {[%clk
0:00:49.8]} 31. bxc4 {[%clk 0:00:58.6]} 31... dxc4 {[%clk 0:00:51.7]} 32. Rc3
{[%clk 0:00:59.6]} 32... Qd5 {[%clk 0:00:51.2]} 33. Qf3 {[%clk 0:00:53.9]} 33...
Bb4 {[%clk 0:00:48.8]} 34. Rc2 {[%clk 0:00:54.9]} 34... c3 {[%clk 0:00:47.5]}
35. Qxd5 {[%clk 0:00:55.1]} 35... exd5 {[%clk 0:00:49.4]} 36. Kf2 {[%clk
0:00:52.9]} 36... Rc8 {[%clk 0:00:40.9]} 37. Ke2 {[%clk 0:00:53.8]} 37... Nf8
{[%clk 0:00:35.6]} 38. Kd3 {[%clk 0:00:51.9]} 38... Rg6 {[%clk 0:00:36.6]} 39.
e4 {[%clk 0:00:48.7]} 39... dxe4+ {[%clk 0:00:34.4]} 40. Kxe4 {[%clk 0:00:50.6]}
40... Nd7 {[%clk 0:00:34]} 41. Bf4 {[%clk 0:00:32.3]} 41... Re8 {[%clk
0:00:33.9]} 42. Kd3 {[%clk 0:00:30.3]} 42... Nb6 {[%clk 0:00:34.6]} 43. Ra1
{[%clk 0:00:31.1]} 43... Nd5 {[%clk 0:00:30.7]} 44. Ke4 {[%clk 0:00:30.5]} 44...
Rd6 {[%clk 0:00:26.9]} 45. Bh2 {[%clk 0:00:24.4]} 45... Rd7 {[%clk 0:00:23.5]}
46. Ne3 {[%clk 0:00:21.1]} 46... Nb6 {[%clk 0:00:16.5]} 47. d5 {[%clk
0:00:16.8]} 47... f5+ {[%clk 0:00:12.9]} 48. Kd4 {[%clk 0:00:11.3]} 48... Nxd5
{[%clk 0:00:12.6]} 49. e6 {[%clk 0:00:12.5]} 49... Rxe6 {[%clk 0:00:10.6]} 50.
Nxd5 {[%clk 0:00:13.2]} 50... Re4+ {[%clk 0:00:11.8]} 51. Kd3 {[%clk 0:00:11.9]}
51... Rxd5# {[%clk 0:00:13]} 0-1

[Event "*** Titled Tuesday 3|2 Blitz"]
[Site "Chess.com"]
[Date "2015.01.27"]
[Round "2"]
[White "quitforever"]
[Black "gumersindo"]
[Result "0-1"]
[WhiteElo "2210"]
[BlackElo "2110"]
[TimeControl "180+2"]
[EndTime "11:22:51 PST"]
[Termination "gumersindo won on time"]

1. d4 {[%clk 0:02:59.8]} 1... d5 {[%clk 0:02:58.8]} 2. c4 {[%clk 0:03:00.2]}
2... c6 {[%clk 0:02:59.6]} 3. Nf3 {[%clk 0:03:01]} 3... Nf6 {[%clk 0:03:00.5]}
4. g3 {[%clk 0:03:02.1]} 4... g6 {[%clk 0:02:59.7]} 5. Bg2 {[%clk 0:03:02.8]}
5... Bg7 {[%clk 0:03:01.2]} 6. O-O {[%clk 0:03:04.2]} 6... O-O {[%clk
0:03:01.9]} 7. Nc3 {[%clk 0:03:05.7]} 7... dxc4 {[%clk 0:03:01.7]} 8. Ne5 {[%clk
0:03:04.2]} 8... Ng4 {[%clk 0:03:02.4]} 9. Nxg4 {[%clk 0:02:52]} 9... Bxg4
{[%clk 0:03:02.1]} 10. h3 {[%clk 0:02:53.9]} 10... Be6 {[%clk 0:02:59.6]} 11.
Be3 {[%clk 0:02:36.2]} 11... Nd7 {[%clk 0:02:53.5]} 12. f4 {[%clk 0:02:35.8]}
12... Nb6 {[%clk 0:02:51.5]} 13. Bf2 {[%clk 0:02:33]} 13... f5 {[%clk
0:02:49.8]} 14. Qd2 {[%clk 0:02:22.1]} 14... Nd5 {[%clk 0:02:49.7]} 15. Rad1
{[%clk 0:02:22.2]} 15... b5 {[%clk 0:02:49.2]} 16. Kh2 {[%clk 0:02:22]} 16...
Nxc3 {[%clk 0:02:47.9]} 17. bxc3 {[%clk 0:02:22.5]} 17... Bd5 {[%clk 0:02:49.2]}
18. e4 {[%clk 0:02:21.4]} 18... fxe4 {[%clk 0:02:45.7]} 19. Rfe1 {[%clk
0:02:20.2]} 19... e3 {[%clk 0:02:42.6]} 20. Rxe3 {[%clk 0:02:17.4]} 20... Bxg2
{[%clk 0:02:42.9]} 21. Kxg2 {[%clk 0:02:19.3]} 21... Qd5+ {[%clk 0:02:43.8]} 22.
Kh2 {[%clk 0:02:20.8]} 22... Bf6 {[%clk 0:02:42.9]} 23. g4 {[%clk 0:02:14.6]}
23... h6 {[%clk 0:02:37.4]} 24. Bg3 {[%clk 0:01:47.4]} 24... a5 {[%clk
0:02:35.4]} 25. a3 {[%clk 0:01:39.3]} 25... Rfd8 {[%clk 0:02:28.9]} 26. h4
{[%clk 0:01:13.9]} 26... Ra7 {[%clk 0:02:21.3]} 27. Qc2 {[%clk 0:01:08.6]} 27...
Kf7 {[%clk 0:02:09.5]} 28. Rde1 {[%clk 0:00:59]} 28... h5 {[%clk 0:02:07.4]} 29.
g5 {[%clk 0:00:56.7]} 29... Bg7 {[%clk 0:02:07.3]} 30. Re6 {[%clk 0:00:52.7]}
30... Rd6 {[%clk 0:01:50.1]} 31. Qxg6+ {[%clk 0:00:50.9]} 31... Kg8 {[%clk
0:01:50.5]} 32. Qe8+ {[%clk 0:00:46.9]} 32... Bf8 {[%clk 0:01:48.3]} 33. Rxd6
{[%clk 0:00:37.6]} 33... exd6 {[%clk 0:01:42.9]} 34. Qxh5 {[%clk 0:00:39]} 34...
Qf5 {[%clk 0:01:34.3]} 35. Qf3 {[%clk 0:00:28.3]} 35... b4 {[%clk 0:01:30.8]}
36. axb4 {[%clk 0:00:26.8]} 36... axb4 {[%clk 0:01:31.3]} 37. cxb4 {[%clk
0:00:26.9]} 37... Ra2+ {[%clk 0:01:28.5]} 38. Re2 {[%clk 0:00:26.9]} 38... Ra1
{[%clk 0:01:28.6]} 39. Qxc6 {[%clk 0:00:23.7]} 39... d5 {[%clk 0:01:10.2]} 40.
h5 {[%clk 0:00:20.8]} 40... Rh1+ {[%clk 0:00:40.8]} 41. Kxh1 {[%clk 0:00:20.6]}
41... Qh3+ {[%clk 0:00:42.4]} 42. Kg1 {[%clk 0:00:20.9]} 42... Qxg3+ {[%clk
0:00:43.4]} 43. Kf1 {[%clk 0:00:22.8]} 43... Qf3+ {[%clk 0:00:40.5]} 44. Ke1
{[%clk 0:00:18.8]} 44... Bxb4+ {[%clk 0:00:41.2]} 45. Kd1 {[%clk 0:00:16.4]}
45... Qf1+ {[%clk 0:00:42.3]} 46. Kc2 {[%clk 0:00:17]} 46... Qxe2+ {[%clk
0:00:43.3]} 47. Kb1 {[%clk 0:00:18.9]} 47... Qd3+ {[%clk 0:00:44]} 48. Ka2
{[%clk 0:00:19.1]} 48... Qb3+ {[%clk 0:00:43.4]} 0-1

[Event "*** Titled Tuesday 3|2 Blitz"]
[Site "Chess.com"]
[Date "2015.01.27"]
[Round "2"]
[White "guillead1"]
[Black "FairChess_on_YouTube"]
[Result "0-1"]
[WhiteElo "2398"]
[BlackElo "2714"]
[TimeControl "180+2"]
[EndTime "11:23:02 PST"]
[Termination "FairChess_on_YouTube won by resignation"]

1. d4 {[%clk 0:03:00]} 1... d5 {[%clk 0:02:58.3]} 2. c4 {[%clk 0:03:01.3]} 2...
e6 {[%clk 0:02:58.8]} 3. Nf3 {[%clk 0:03:02.6]} 3... Nf6 {[%clk 0:02:59.5]} 4.
g3 {[%clk 0:03:03.9]} 4... Bb4+ {[%clk 0:02:54]} 5. Bd2 {[%clk 0:03:04.4]} 5...
Be7 {[%clk 0:02:54.9]} 6. Bg2 {[%clk 0:03:05.3]} 6... O-O {[%clk 0:02:56.2]} 7.
O-O {[%clk 0:03:06.1]} 7... Nbd7 {[%clk 0:02:56.6]} 8. Qc2 {[%clk 0:03:05.9]}
8... c6 {[%clk 0:02:57.9]} 9. Rd1 {[%clk 0:03:05.2]} 9... b6 {[%clk 0:02:57.4]}
10. b3 {[%clk 0:03:04.6]} 10... Bb7 {[%clk 0:02:56.5]} 11. Nc3 {[%clk 0:03:05]}
11... Qc8 {[%clk 0:02:57.1]} 12. Rac1 {[%clk 0:02:54.6]} 12... Ba3 {[%clk
0:02:55.9]} 13. Rb1 {[%clk 0:02:55.4]} 13... Be7 {[%clk 0:02:56.7]} 14. Rbc1
{[%clk 0:02:52.7]} 14... Ba3 {[%clk 0:02:56.4]} 15. Rb1 {[%clk 0:02:53.5]} 15...
a5 {[%clk 0:02:56.4]} 16. Bf4 {[%clk 0:02:42.5]} 16... Bb4 {[%clk 0:02:54]} 17.
Rbc1 {[%clk 0:02:38.2]} 17... Ba3 {[%clk 0:02:55]} 18. Rb1 {[%clk 0:02:38.8]}
18... h6 {[%clk 0:02:52.8]} 19. Ne5 {[%clk 0:02:22.9]} 19... Bb4 {[%clk
0:02:51.2]} 20. Nd3 {[%clk 0:02:20.3]} 20... Be7 {[%clk 0:02:46.8]} 21. Rbc1
{[%clk 0:02:17.1]} 21... Ba3 {[%clk 0:02:46.3]} 22. Rb1 {[%clk 0:02:17.8]} 22...
Ba6 {[%clk 0:02:47.4]} 23. Na4 {[%clk 0:02:09.4]} 23... b5 {[%clk 0:02:38.6]}
24. cxb5 {[%clk 0:02:04.2]} 24... Bxb5 {[%clk 0:02:38.1]} 25. Nac5 {[%clk
0:02:01.4]} 25... Bxc5 {[%clk 0:02:35.5]} 26. Nxc5 {[%clk 0:01:55.3]} 26... Nxc5
{[%clk 0:02:34.8]} 27. dxc5 {[%clk 0:01:56.1]} 27... a4 {[%clk 0:02:36.2]} 28.
b4 {[%clk 0:01:54.3]} 28... a3 {[%clk 0:02:36.8]} 29. Be5 {[%clk 0:01:52.3]}
29... Nd7 {[%clk 0:02:23.6]} 30. Bd6 {[%clk 0:01:53]} 30... Re8 {[%clk
0:02:25.2]} 31. e4 {[%clk 0:01:54]} 31... Qa6 {[%clk 0:02:22.1]} 32. Bf1 {[%clk
0:01:40.1]} 32... dxe4 {[%clk 0:02:16]} 33. Qxe4 {[%clk 0:01:39.1]} 33... Nf6
{[%clk 0:02:17]} 34. Bxb5 {[%clk 0:01:35.8]} 34... Qxb5 {[%clk 0:02:16.7]} 35.
Qd3 {[%clk 0:01:35.8]} 35... Nd5 {[%clk 0:02:03]} 36. Qxb5 {[%clk 0:01:28]}
36... cxb5 {[%clk 0:02:04.6]} 37. Rb3 {[%clk 0:01:29.2]} 37... Ra4 {[%clk
0:02:02.6]} 38. Rd4 {[%clk 0:01:26.2]} 38... Rd8 {[%clk 0:02:03.9]} 39. f4
{[%clk 0:01:24.5]} 39... Ne7 {[%clk 0:02:03.6]} 40. Rdd3 {[%clk 0:01:20.8]}
40... Nc6 {[%clk 0:02:00]} 41. Rxa3 {[%clk 0:01:21.7]} 41... Rda8 {[%clk
0:02:01.6]} 42. Rxa4 {[%clk 0:01:21.6]} 42... Rxa4 {[%clk 0:02:03.3]} 43. a3
{[%clk 0:01:23.1]} 43... f6 {[%clk 0:02:03.4]} 44. Kf2 {[%clk 0:01:23.5]} 44...
Kf7 {[%clk 0:02:04.3]} 45. Ke3 {[%clk 0:01:24.3]} 45... g5 {[%clk 0:02:03.9]}
46. Kd2 {[%clk 0:01:24.2]} 46... g4 {[%clk 0:02:03]} 47. Kc2 {[%clk 0:01:25]}
47... Ra7 {[%clk 0:01:59.9]} 48. Kb3 {[%clk 0:01:24.7]} 48... h5 {[%clk
0:02:01.1]} 49. Rd2 {[%clk 0:01:22.2]} 49... e5 {[%clk 0:01:52.7]} 50. fxe5
{[%clk 0:01:18.9]} 50... fxe5 {[%clk 0:01:54.3]} 51. Kb2 {[%clk 0:01:17.8]}
51... Ke6 {[%clk 0:01:54.4]} 52. Bf8 {[%clk 0:01:12.8]} 52... Nd4 {[%clk
0:01:54.2]} 53. Bh6 {[%clk 0:01:12.7]} 53... Nf5 {[%clk 0:01:39.7]} 54. Bg5
{[%clk 0:01:07.7]} 54... Rg7 {[%clk 0:01:40.4]} 55. Bd8 {[%clk 0:01:06.6]} 55...
Nd4 {[%clk 0:01:41.2]} 56. Kc3 {[%clk 0:00:49.7]} 56... Ra7 {[%clk 0:01:39.6]}
57. Kb2 {[%clk 0:00:50.1]} 57... Rf7 {[%clk 0:01:36.4]} 58. Bg5 {[%clk
0:00:45.2]} 58... Rf3 {[%clk 0:01:35.2]} 59. Bd8 {[%clk 0:00:41.4]} 59... Kd5
{[%clk 0:01:35.1]} 60. Bc7 {[%clk 0:00:39.4]} 60... e4 {[%clk 0:01:33.6]} 61.
Bf4 {[%clk 0:00:34.9]} 61... e3 {[%clk 0:01:29.9]} 62. Bxe3 {[%clk 0:00:31.7]}
62... Rxe3 {[%clk 0:01:30.8]} 63. Rf2 {[%clk 0:00:32.5]} 63... Rb3+ {[%clk
0:01:29.7]} 64. Ka2 {[%clk 0:00:33.1]} 64... Rf3 {[%clk 0:01:31.1]} 65. Rd2
{[%clk 0:00:33.7]} 65... Kc4 {[%clk 0:01:32]} 66. Rg2 {[%clk 0:00:29.7]} 66...
Kc3 {[%clk 0:01:24.4]} 67. Rb2 {[%clk 0:00:22.9]} 67... Rf1 {[%clk 0:01:25.3]}
68. Rg2 {[%clk 0:00:23]} 68... Nb3 {[%clk 0:01:25]} 0-1

[Event "*** Titled Tuesday 3|2 Blitz"]
[Site "Chess.com"]
[Date "2015.01.27"]
[Round "2"]
[White "MikePerelshteyn"]
[Black "Carolina-moon"]
[Result "1/2-1/2"]
[WhiteElo "2029"]
[BlackElo "2001"]
[TimeControl "180+2"]
[EndTime "11:23:18 PST"]
[Termination "Game drawn by agreement"]

1. Nf3 {[%clk 0:03:00]} 1... f5 {[%clk 0:02:58.1]} 2. e4 {[%clk 0:02:59.1]} 2...
fxe4 {[%clk 0:02:58.3]} 3. Ng5 {[%clk 0:03:00.3]} 3... d5 {[%clk 0:02:57.5]} 4.
d3 {[%clk 0:03:01.4]} 4... Qd6 {[%clk 0:02:53.9]} 5. dxe4 {[%clk 0:03:01]} 5...
h6 {[%clk 0:02:54.9]} 6. Nh3 {[%clk 0:02:49.4]} 6... dxe4 {[%clk 0:02:41.3]} 7.
Qe2 {[%clk 0:02:41.6]} 7... Nf6 {[%clk 0:02:40.3]} 8. Nf4 {[%clk 0:02:36.7]}
8... g5 {[%clk 0:02:23.8]} 9. Ng6 {[%clk 0:02:35.9]} 9... Rg8 {[%clk 0:02:24.4]}
10. Nxf8 {[%clk 0:02:35.6]} 10... Rxf8 {[%clk 0:02:23.7]} 11. Nc3 {[%clk
0:02:36.7]} 11... Nc6 {[%clk 0:02:24.1]} 12. Be3 {[%clk 0:02:36.7]} 12... Bg4
{[%clk 0:02:18.8]} 13. Qb5 {[%clk 0:02:26.3]} 13... O-O-O {[%clk 0:02:13.3]} 14.
Be2 {[%clk 0:02:27.1]} 14... Bxe2 {[%clk 0:02:09.8]} 15. Qxe2 {[%clk 0:02:26.1]}
15... Nd4 {[%clk 0:01:45.5]} 16. Bxd4 {[%clk 0:02:26.5]} 16... Qxd4 {[%clk
0:01:46.6]} 17. Rd1 {[%clk 0:02:26.3]} 17... Qe5 {[%clk 0:01:43.9]} 18. O-O
{[%clk 0:02:21.2]} 18... Rxd1 {[%clk 0:01:41.2]} 19. Rxd1 {[%clk 0:02:20.7]}
19... Rd8 {[%clk 0:01:42.5]} 20. Re1 {[%clk 0:02:18]} 20... c6 {[%clk
0:01:34.1]} 21. h3 {[%clk 0:02:08.2]} 21... Rd4 {[%clk 0:01:27.9]} 22. a3 {[%clk
0:01:52.5]} 22... Kc7 {[%clk 0:01:22.7]} 23. Qe3 {[%clk 0:01:52.3]} 23... Nd5
{[%clk 0:01:18.7]} 24. Nxd5+ {[%clk 0:01:50.7]} 24... cxd5 {[%clk 0:01:06.2]}
25. Qc3+ {[%clk 0:01:49.2]} 25... Kb8 {[%clk 0:01:07.4]} 26. Qa5 {[%clk
0:01:37.5]} 26... Qc7 {[%clk 0:00:55.6]} 27. Qb5 {[%clk 0:01:22.6]} 27... a6
{[%clk 0:00:46.5]} 28. Qe8+ {[%clk 0:01:19.8]} 28... Ka7 {[%clk 0:00:47.6]} 29.
Qg6 {[%clk 0:00:46.2]} 29... Qb6 {[%clk 0:00:46.4]} 30. Qxb6+ {[%clk 0:00:44.3]}
30... Kxb6 {[%clk 0:00:47]} 31. Re2 {[%clk 0:00:44.9]} 31... Rd1+ {[%clk
0:00:40.9]} 32. Kh2 {[%clk 0:00:45.8]} 32... Kc5 {[%clk 0:00:39.9]} 33. Kg3
{[%clk 0:00:46.9]} 33... e5 {[%clk 0:00:38.8]} 34. Kg4 {[%clk 0:00:47.5]} 34...
Rg1 {[%clk 0:00:30.5]} 35. g3 {[%clk 0:00:48.2]} 35... Rh1 {[%clk 0:00:22.2]}
36. Kf5 {[%clk 0:00:40.2]} 36... a5 {[%clk 0:00:22.6]} 37. Kxe5 {[%clk
0:00:38.2]} 37... b5 {[%clk 0:00:23.3]} 38. Rd2 {[%clk 0:00:38.6]} 38... Rxh3
{[%clk 0:00:17.7]} 39. Rxd5+ {[%clk 0:00:39.3]} 39... Kc6 {[%clk 0:00:17.4]} 40.
Kxe4 {[%clk 0:00:36.6]} 40... Rh2 {[%clk 0:00:17]} 41. Rf5 {[%clk 0:00:37.7]}
41... b4 {[%clk 0:00:14.6]} 42. axb4 {[%clk 0:00:38.2]} 42... axb4 {[%clk
0:00:15.7]} 43. b3 {[%clk 0:00:39]} 43... Kd6 {[%clk 0:00:16.5]} 44. Kd4 {[%clk
0:00:39.6]} 44... Ke6 {[%clk 0:00:15.4]} 45. Rf3 {[%clk 0:00:40.1]} 45... h5
{[%clk 0:00:16]} 46. Ke4 {[%clk 0:00:37.6]} 46... h4 {[%clk 0:00:15.6]} 47. gxh4
{[%clk 0:00:38]} 47... gxh4 {[%clk 0:00:11.1]} 48. Kf4 {[%clk 0:00:38.9]} 48...
Rh1 {[%clk 0:00:11.3]} 49. Kg4 {[%clk 0:00:39.3]} 49... Rc1 {[%clk 0:00:11.1]}
50. Kxh4 {[%clk 0:00:38.4]} 50... Rxc2 {[%clk 0:00:12.4]} 51. Kg4 {[%clk
0:00:39.6]} 51... Rc3 {[%clk 0:00:13.7]} 52. Kf4 {[%clk 0:00:40.9]} 52... Kd5
{[%clk 0:00:13.4]} 53. Re3 {[%clk 0:00:39.5]} 53... Rc1 {[%clk 0:00:13.3]} 54.
Kf3 {[%clk 0:00:37.6]} 54... Kd4 {[%clk 0:00:13.5]} 55. Ke2 {[%clk 0:00:37.1]}
55... Rc2+ {[%clk 0:00:12.6]} 56. Kf3 {[%clk 0:00:38.3]} 56... Rc3 {[%clk
0:00:13.2]} 57. Kf4 {[%clk 0:00:31]} 57... Rxe3 {[%clk 0:00:12]} 58. fxe3+
{[%clk 0:00:32.3]} 58... Kc3 {[%clk 0:00:13.9]} 59. e4 {[%clk 0:00:33.8]} 59...
Kxb3 {[%clk 0:00:15.8]} 60. e5 {[%clk 0:00:35.3]} 60... Kc2 {[%clk 0:00:16.6]}
61. e6 {[%clk 0:00:36.8]} 61... b3 {[%clk 0:00:18.5]} 62. e7 {[%clk 0:00:38.3]}
62... b2 {[%clk 0:00:20.4]} 63. e8=Q {[%clk 0:00:38.8]} 63... b1=Q {[%clk
0:00:22.3]} 64. Qe4+ {[%clk 0:00:39.5]} 64... Kc1 {[%clk 0:00:23.5]} 65. Qe1+
{[%clk 0:00:39.7]} 65... Kb2 {[%clk 0:00:24.5]} 66. Qb4+ {[%clk 0:00:38.1]}
66... Kc1 {[%clk 0:00:24.4]} 67. Qe1+ {[%clk 0:00:35.2]} 67... Kb2 {[%clk
0:00:24.4]} 1/2-1/2